{"text_format":"1","workbook":"xlsx","n_sheets":4,"sheets":["【入力用】返礼品リスト","地場産品基準の類型について","【見本】返礼品リスト","リスト"],"not_rendered":{"charts":0,"images":1,"macros":0,"external_links":0,"defined_names":8,"comments":2,"pivot_tables":0},"unopened":[],"bounds":{"document_bytes":16777216,"sheet_cells":100000,"rows_first":2000,"rows_last":500,"rows_between":2000,"halvings":0,"cell_chars":16384,"cell_head_chars":4096},"cells_cut":0,"cells_raw":0,"read":"whole","date_system":"1900"}

{"sheet":"【入力用】返礼品リスト","index":0,"n_rows":88,"n_cols":43,"rows_kept":88,"cut":false,"hidden":false,"merged":[]}
["項番","中間事業者（ふるさと納税返礼品業務委託事業者）への連絡","事業者名\n(貴社名）","返礼品の名称\n（返礼品名 80文字以内)","返礼品名略称(24文字以内)\n発注時に記載する名称","軽減税率\n対象 ○\n対象外×","\n提供価格\n(消費税・梱包代込)\n（①価格_税込)","②送料\n(税込)","①+②価格\n（税込)","寄附金額","発送方法\n※指定なしを推奨\n（伝票準備や、送料入力などが不要)","梱包サイズ","重量\n（kg）","発送予定日\n出荷日数(日)","商品の扱い","返礼品の説明・PR(３００文字以内)\n（商品説明）","返礼品の内容 容量/規格\n（容量）","配送日時指定可否\n配送（配達不可地域等）","提供可能数","賞味・消費期限/利用期限等 ","アレルギー 特定7品目\n卵、乳、小麦、そば、落花生（ピ ーナッツ）、えび、かに","アレルギー 特定21品目\nアーモンド、あわび、いか、いくら、オレンジ、カシューナッツ、 キウイフルーツ、牛肉、くるみ、ごま、さけ、さば、大豆、鶏肉、 バナナ、豚肉、まつたけ、もも、やまいも、りんご、ゼラチン","食品表示\n主たる返礼品の原材料・原産国","備考/注意事項","特記事項","発送可能時期等\n","独自性","売上げ","話題性","返礼品の要件\n▼より①～③を選択、右記にその詳細を入力してください。","\n\n①区内で生産、製造、加工されているもの","\n\n②区内で提供するサービス（食事・宿泊・体験など）が受けられるもの","\n\n③その他（）","画像ファイル名（１）","画像ファイル名（２）","画像ファイル名（３）","画像ファイル名（４）","画像ファイル名（５）","画像ファイル名（６）","画像ファイル名（７）","画像ファイル名（８）","画像ファイル名（９）","画像ファイル名（１０）"]
[null,"・ポータルサイトには掲載されません。\n・特記事項などがあれば、ご入力ください。","正式名をご記入ください。\n複数の事業者の商品をセット化する場合は、代表の事業者名をご記入ください","ふるさと納税ポータルサイトに掲載する返礼品のPR文をご記入ください。","・発注時に使用する名称です。\n・24文字以内でご入力ください。","▼より選択\n\n・対象  ○\n・対象外 ×\n","・価格は税込です。\n・定期便は総額をご入力ください。","・価格は税込です。\n・定期便は総額をご入力ください。\n\n※　発送方法【指定なし】の場合は、送料は入力不要です。","-","区が入力します。","▼より選択\n\n【指定なし】選択により、ＳＣＭサービスでの発送方法となります。","▼より選択\n\n縦・横・高さの合計です。","返礼品梱包後の総重量をご入力ください。","・発注～出荷の所要日数をご入力ください。\n注文受付後()日以内に発送","▼より選択\n\n冷蔵\n冷凍\n常温\nメール便\neメール\nその他（）","ふるさと納税ポータルサイトに掲載する返礼品のPR文をご記入ください。","内容量や内訳をご記入ください。\n（例）\n○○うどん : 約140g×5個 計約700g \n デミグラスソース: 約50g×3個\n○○ランチペアご利用券 (一品料理・汁物・ご飯物×2名様分)\nあだちの歴史体験コース (千住宿2時間コース お茶・お団子付き) 2名様分　など","▼より選択\n配送日・配送時間ともに指定不可\n配送日のみ指定可\n配送時間のみ指定可\n配送日・配送時間ともに指定可",null,"製造日から( )日以内/発行日から6か月/メール配信日から1年間など","食品・飲料類の場合\n必須","食品・飲料類の場合\n必須","食品・飲料類の場合\n必須","備考や注意事項があればご入力ください。\n\n例1)時期により内容が異なります。 商品の指定はできかねます。\n例2)チケットをご利用の場合は、事前にご予約をお願いします。など",null,"▼より選択\n通年受付可能\n期間限定（）\n個数限定（）\n期間・個数限定（）","足立ブランド認定製品、足立区ならではの体験など","年間〇個、〇〇円など","TV. 雑誌などメディア掲載の実績、 SNSでの反響など","①区内で生産、製造、加工されているもの\n②区内で提供するサービス（食事・宿泊・体験など）が受けられるもの\n③その他（）","返礼品の製造加工工程について、区内での製造内容と住所、区外での製造内容と住所、その他補足を入力ください。\n\n※工程はできるだけ詳しく入力してください。","返礼品として提供するサービスの詳細、店舗名、住所、その他補足事項があれば入力ください。"]
[null,null,"必須","必須","必須","必須","必須",null,"自動計算",null,"必須","必須","必須","必須","必須","必須","必須","必須","必須","必須",null,null,null,null,null,"必須","必須","必須","必須","必須"]
[1,null,null,null,null,null,null,null,{"$f":"IF(G4=\"\",\"\",G4+H4)","v":""}]
[2,null,null,null,null,null,null,null,{"$f":"IF(G5=\"\",\"\",G5+H5)","v":""}]
[3,null,null,null,null,null,null,null,""]
[4,null,null,null,null,null,null,null,""]
[5,null,null,null,null,null,null,null,""]
[6,null,null,null,null,null,null,null,""]
[7,null,null,null,null,null,null,null,""]
[8,null,null,null,null,null,null,null,""]
[9,null,null,null,null,null,null,null,""]
[10,null,null,null,null,null,null,null,""]
[null,null,null,null,null,null,null,null,""]
[null,null,null,null,null,null,null,null,""]
[null,null,null,null,null,null,null,null,""]
[null,null,null,null,null,null,null,null,""]
[null,null,null,null,null,null,null,null,""]
[null,null,null,null,null,null,null,null,""]
[null,null,null,null,null,null,null,null,""]
[null,null,null,null,null,null,null,null,""]
[null,null,null,null,null,null,null,null,""]
[null,null,null,null,null,null,null,null,""]
[null,null,null,null,null,null,null,null,""]
[null,null,null,null,null,null,null,null,""]
[null,null,null,null,null,null,null,null,""]
[null,null,null,null,null,null,null,null,""]
[null,null,null,null,null,null,null,null,""]
[null,null,null,null,null,null,null,null,""]
[null,null,null,null,null,null,null,null,""]
[null,null,null,null,null,null,null,null,""]
[null,null,null,null,null,null,null,null,""]
[null,null,null,null,null,null,null,null,""]
[null,null,null,null,null,null,null,null,""]
[null,null,null,null,null,null,null,null,""]
[null,null,null,null,null,null,null,null,""]
[null,null,null,null,null,null,null,null,""]
[null,null,null,null,null,null,null,null,""]
[null,null,null,null,null,null,null,null,""]
[null,null,null,null,null,null,null,null,""]
[null,null,null,null,null,null,null,null,""]
[null,null,null,null,null,null,null,null,""]
[null,null,null,null,null,null,null,null,""]
[null,null,null,null,null,null,null,null,""]
[null,null,null,null,null,null,null,null,""]
[null,null,null,null,null,null,null,null,""]
[null,null,null,null,null,null,null,null,""]
[null,null,null,null,null,null,null,null,""]
[null,null,null,null,null,null,null,null,""]
[null,null,null,null,null,null,null,null,""]
[null,null,null,null,null,null,null,null,""]
[null,null,null,null,null,null,null,null,""]
[null,null,null,null,null,null,null,null,""]
[null,null,null,null,null,null,null,null,""]
[null,null,null,null,null,null,null,null,""]
[null,null,null,null,null,null,null,null,{"$f":"IF(G56=\"\",\"\",G56+H56)","v":""}]
[null,null,null,null,null,null,null,null,""]
[null,null,null,null,null,null,null,null,""]
[null,null,null,null,null,null,null,null,""]
[null,null,null,null,null,null,null,null,""]
[null,null,null,null,null,null,null,null,""]
[null,null,null,null,null,null,null,null,""]
[null,null,null,null,null,null,null,null,""]
[null,null,null,null,null,null,null,null,""]
[null,null,null,null,null,null,null,null,""]
[null,null,null,null,null,null,null,null,""]
[null,null,null,null,null,null,null,null,""]
[null,null,null,null,null,null,null,null,""]
[null,null,null,null,null,null,null,null,""]
[null,null,null,null,null,null,null,null,""]
[null,null,null,null,null,null,null,null,""]
[null,null,null,null,null,null,null,null,""]
[null,null,null,null,null,null,null,null,""]
[null,null,null,null,null,null,null,null,""]
[null,null,null,null,null,null,null,null,""]
[null,null,null,null,null,null,null,null,""]
[null,null,null,null,null,null,null,null,""]
[null,null,null,null,null,null,null,null,""]
[null,null,null,null,null,null,null,null,""]
[null,null,null,null,null,null,null,null,""]
[null,null,null,null,null,null,null,null,""]
[null,null,null,null,null,null,null,null,""]
[null,null,null,null,null,null,null,null,""]
[null,null,null,null,null,null,null,null,""]
[null,null,null,null,null,null,null,null,""]
[null,null,null,null,null,null,null,null,""]
[null,null,null,null,null,null,null,null,""]
[null,null,null,null,null,null,null,null,""]

{"sheet":"地場産品基準の類型について","index":1,"n_rows":0,"n_cols":0,"rows_kept":0,"cut":false,"hidden":false,"merged":[]}

{"sheet":"【見本】返礼品リスト","index":2,"n_rows":89,"n_cols":42,"rows_kept":89,"cut":false,"hidden":false,"merged":[]}
["項番","中間事業者（ふるさと納税返礼品業務委託事業者）への連絡","事業者名\n(貴社名）","返礼品の名称\n（返礼品名 80文字以内)","返礼品名略称(24文字以内)\n発注時に記載する名称","軽減税率\n対象 ○\n対象外×","\n提供価格\n(消費税・梱包代込)\n（①価格_税込)","②送料\n(税込)","①+②価格\n（税込)","寄附金額","発送方法\n※指定なしを推奨\n（伝票準備や、送料入力などが不要)","梱包サイズ","重量\n（kg）","発送予定日\n出荷日数(日)","商品の扱い","返礼品の説明・PR(３００文字以内)\n（商品説明）","返礼品の内容 容量/規格\n（容量）","配送日時指定可否\n配送（配達不可地域等）","提供可能数","賞味・消費期限/利用期限等 ","アレルギー 特定7品目\n卵、乳、小麦、そば、落花生（ピ ーナッツ）、えび、かに","アレルギー 特定21品目\nアーモンド、あわび、いか、いくら、オレンジ、カシューナッツ、 キウイフルーツ、牛肉、くるみ、ごま、さけ、さば、大豆、鶏肉、 バナナ、豚肉、まつたけ、もも、やまいも、りんご、ゼラチン","備考/注意事項","特記事項","発送可能時期等\n","独自性","売上げ","話題性","返礼品の要件\n▼より①～③を選択、右記にその詳細を入力してください。","\n\n①区内で生産、製造、加工されているもの","\n\n②区内で提供するサービス（食事・宿泊・体験など）が受けられるもの","\n\n③その他（）","画像ファイル名（１）","画像ファイル名（２）","画像ファイル名（３）","画像ファイル名（４）","画像ファイル名（５）","画像ファイル名（６）","画像ファイル名（７）","画像ファイル名（８）","画像ファイル名（９）","画像ファイル名（１０）"]
[null,"・ポータルサイトには掲載されません。\n・特記事項などがあれば、ご入力ください。","正式名をご記入ください。\n複数の事業者の商品をセット化する場合は、代表の事業者名をご記入ください","ふるさと納税ポータルサイトに掲載する返礼品のPR文をご記入ください。","・発注時に使用する名称です。\n・24文字以内でご入力ください。","▼より選択\n\n・対象  ○\n・対象外 ×\n","・価格は税込です。\n・定期便は総額をご入力ください。","・価格は税込です。\n・定期便は総額をご入力ください。\n\n※　発送方法【指定なし】の場合は、送料は入力不要です。","-","区が入力します。","▼より選択\n\n【指定なし】選択により、ＳＣＭサービスでの発送方法となります。","▼より選択\n\n縦・横・高さの合計です。","返礼品梱包後の総重量をご入力ください。","・発注～出荷の所要日数をご入力ください。\n注文受付後()日以内に発送","▼より選択\n\n冷蔵\n冷凍\n常温\nメール便\neメール\nその他（）","ふるさと納税ポータルサイトに掲載する返礼品のPR文をご記入ください。","内容量や内訳をご記入ください。\n（例）\n○○うどん : 約140g×5個 計約700g \n デミグラスソース: 約50g×3個\n○○ランチペアご利用券 (一品料理・汁物・ご飯物×2名様分)\nあだちの歴史体験コース (千住宿2時間コース お茶・お団子付き) 2名様分　など","▼より選択\n配送日・配送時間ともに指定不可\n配送日のみ指定可\n配送時間のみ指定可\n配送日・配送時間ともに指定可","無制限\n100個/月\n","製造日から( )日以内/発行日から6か月/メール配信日から1年間など","食品・飲料類の場合\n必須","食品・飲料類の場合\n必須","備考や注意事項があればご入力ください。\n\n例1)時期により内容が異なります。 商品の指定はできかねます。\n例2)チケットをご利用の場合は、事前にご予約をお願いします。など",null,"▼より選択\n通年受付可能\n期間限定（）\n個数限定（）\n期間・個数限定（）","足立ブランド認定製品、足立区ならではの体験など","年間〇個、〇〇円など","TV. 雑誌などメディア掲載の実績、 SNSでの反響など","①区内で生産、製造、加工されているもの\n②区内で提供するサービス（食事・宿泊・体験など）が受けられるもの\n③その他（）","返礼品の製造加工工程について、区内での製造内容と住所、区外での製造内容と住所、その他補足を入力ください。\n\n※工程はできるだけ詳しく入力してください。","返礼品として提供するサービスの詳細、店舗名、住所、その他補足事項があれば入力ください。"]
[null,null,"必須","必須","必須","必須","必須",null,"自動計算",null,"必須","必須","必須","必須","必須","必須","必須","必須","必須","必須",null,null,null,null,"必須","必須","必須","必須","必須"]
["記入例",null,"株式会社　○○","焼き菓子詰め合わせ　24個","焼き菓子　24個入","✕",3000,"―",3000,null,"指定なし（中間事業者推奨の配送方法を利用）","60サイズ","0.4 kg",7,"常温","◆○○テレビ「〇〇〇」で紹介されました！\n◆〇〇選手権で日本一に輝きました！\n\nおすすめの焼菓子が詰まったギフトセットです。\n\n・バター100％使用のサクサク食感クッキーは2種の小麦粉を使い分けて仕込まれています。\n・レンゲハチミツの風味が程よく、しっとりした食感とほろっととろける柔らかさが特徴のマドレーヌ\n\n\n※直射日光、高温多湿を避けて保管してください。","\n【内容】\n・クッキー　 　12個\n・マドレーヌ　 12個\n","配送日・配送時間ともに指定不可","100個/月","賞味期限：\n製造日から60日\n","卵・乳・小麦","大豆","時期により内容が異なります。 商品の指定はできかねます。","特にありません","通年受付可能","足立ブランド認定製品、足立区ならではの体験など","年間〇個、〇〇円など","TV.雑誌などメディア掲載の実績、SNSでの反響などを記載してください。","①区内で生産、製造、加工されているもの","原材料仕入→調合→整形→オーブンで焼き→小包装→検品→梱包→配送\n\n下記の住所で、\n上記の全ての工程を行っています。\n東京都足立区中央本町一丁目17番1号","―","―","1.　詰め合わせ全体","2.　クッキー個包装イメージ画像","3.　マドレーヌ個包装イメージ画像","4.　パッケージ画像","5.　梱包画像"]
[1,null,null,null,null,null,null,null,{"$f":"IF(G5=\"\",\"\",G5+H5)","v":""}]
[2,null,null,null,null,null,null,null,{"$f":"IF(G6=\"\",\"\",G6+H6)","v":""}]
[3,null,null,null,null,null,null,null,""]
[4,null,null,null,null,null,null,null,""]
[5,null,null,null,null,null,null,null,""]
[6,null,null,null,null,null,null,null,""]
[7,null,null,null,null,null,null,null,""]
[8,null,null,null,null,null,null,null,""]
[9,null,null,null,null,null,null,null,""]
[10,null,null,null,null,null,null,null,""]
[null,null,null,null,null,null,null,null,""]
[null,null,null,null,null,null,null,null,""]
[null,null,null,null,null,null,null,null,""]
[null,null,null,null,null,null,null,null,""]
[null,null,null,null,null,null,null,null,""]
[null,null,null,null,null,null,null,null,""]
[null,null,null,null,null,null,null,null,""]
[null,null,null,null,null,null,null,null,""]
[null,null,null,null,null,null,null,null,""]
[null,null,null,null,null,null,null,null,""]
[null,null,null,null,null,null,null,null,""]
[null,null,null,null,null,null,null,null,""]
[null,null,null,null,null,null,null,null,""]
[null,null,null,null,null,null,null,null,""]
[null,null,null,null,null,null,null,null,""]
[null,null,null,null,null,null,null,null,""]
[null,null,null,null,null,null,null,null,""]
[null,null,null,null,null,null,null,null,""]
[null,null,null,null,null,null,null,null,""]
[null,null,null,null,null,null,null,null,""]
[null,null,null,null,null,null,null,null,""]
[null,null,null,null,null,null,null,null,""]
[null,null,null,null,null,null,null,null,""]
[null,null,null,null,null,null,null,null,""]
[null,null,null,null,null,null,null,null,""]
[null,null,null,null,null,null,null,null,""]
[null,null,null,null,null,null,null,null,""]
[null,null,null,null,null,null,null,null,""]
[null,null,null,null,null,null,null,null,""]
[null,null,null,null,null,null,null,null,""]
[null,null,null,null,null,null,null,null,""]
[null,null,null,null,null,null,null,null,""]
[null,null,null,null,null,null,null,null,""]
[null,null,null,null,null,null,null,null,""]
[null,null,null,null,null,null,null,null,""]
[null,null,null,null,null,null,null,null,""]
[null,null,null,null,null,null,null,null,""]
[null,null,null,null,null,null,null,null,""]
[null,null,null,null,null,null,null,null,""]
[null,null,null,null,null,null,null,null,""]
[null,null,null,null,null,null,null,null,""]
[null,null,null,null,null,null,null,null,""]
[null,null,null,null,null,null,null,null,""]
[null,null,null,null,null,null,null,null,""]
[null,null,null,null,null,null,null,null,""]
[null,null,null,null,null,null,null,null,""]
[null,null,null,null,null,null,null,null,""]
[null,null,null,null,null,null,null,null,""]
[null,null,null,null,null,null,null,null,""]
[null,null,null,null,null,null,null,null,""]
[null,null,null,null,null,null,null,null,""]
[null,null,null,null,null,null,null,null,""]
[null,null,null,null,null,null,null,null,""]
[null,null,null,null,null,null,null,null,""]
[null,null,null,null,null,null,null,null,""]
[null,null,null,null,null,null,null,null,{"$f":"IF(G70=\"\",\"\",G70+H70)","v":""}]
[null,null,null,null,null,null,null,null,""]
[null,null,null,null,null,null,null,null,""]
[null,null,null,null,null,null,null,null,""]
[null,null,null,null,null,null,null,null,""]
[null,null,null,null,null,null,null,null,""]
[null,null,null,null,null,null,null,null,""]
[null,null,null,null,null,null,null,null,""]
[null,null,null,null,null,null,null,null,""]
[null,null,null,null,null,null,null,null,""]
[null,null,null,null,null,null,null,null,""]
[null,null,null,null,null,null,null,null,""]
[null,null,null,null,null,null,null,null,""]
[null,null,null,null,null,null,null,null,""]
[null,null,null,null,null,null,null,null,""]
[null,null,null,null,null,null,null,null,""]
[null,null,null,null,null,null,null,null,""]
[null,null,null,null,null,null,null,null,""]
[null,null,null,null,null,null,null,null,""]
[null,null,null,null,null,null,null,null,""]

{"sheet":"リスト","index":3,"n_rows":21,"n_cols":27,"rows_kept":21,"cut":false,"hidden":false,"merged":[]}
[]
[null,null,"配送日時指定可否",null,"返礼品のカテゴリ",null,"返礼品等の要件",null,"発送可能時期等",null,"発送予定事業者",null,"商品の扱い",null,"軽減税率",null,"①区内で生産、製造、加工されているもの",null,"②区内で提供するサービス（食事・宿泊・体験など）が受けられるもの",null,"③その他",null,"賞味/利用期限等 "]
[null,null,"配送日・配送時間ともに指定不可",null,"肉",null,"①区内で生産、製造、加工されているもの",null,"通年受付可能",null,"指定なし（中間事業者推奨の配送方法を利用）",null,"常温",null,"軽減税率　対象",null,"一部区外製造を含む場合\n\n区内製造場所（住所）：足立区\n製造内容：\n区外製造場所（住所）：\n製造内容：",null,"サービス内容：\n店舗名：\n区内の提供場所（住所）：",null,"理由：",null,"製造日から( )\n発行日から（）\nメール配信日から（）など",null,null,null,"（　　　　　　　　　　　　　　）"]
[null,null,"配送日のみ指定可",null,"米・パン",null,"②区内で提供するサービス（食事・宿泊・体験など）が受けられるもの",null,"期間限定（　）",null,"自社手配（ヤマト運輸）",null,"冷蔵",null,"軽減税率　対象外",null,"全て区内製造の場合\n\n製造場所（住所）：足立区\n製造内容："]
[null,null,"配送時間のみ指定可",null,"果実類",null,"③その他（）",null,"個数限定（　）",null,"自社手配（日本郵便）",null,"冷凍"]
[null,null,"配送日・配送時間ともに指定可",null,"エビ・カニ類",null,null,null,"期間・個数限定（　）",null,"自社手配（佐川急便）",null,"郵便"]
[null,null,null,null,"魚介類",null,null,null,null,null,"自社手配・その他（　　　　　　　）",null,"メール便（ゆうメールやネコポスなど）"]
[null,null,null,null,"野菜類",null,null,null,null,null,null,null,"ｅメール"]
[null,null,null,null,"卵",null,null,null,null,null,null,null,"その他（）"]
[null,null,null,null,"お酒"]
[null,null,null,null,"飲料類"]
[null,null,null,null,"菓子"]
[null,null,null,null,"加工品等"]
[null,null,null,null,"旅行"]
[null,null,null,null,"イベントやチケット類"]
[null,null,null,null,"地域のお礼の品"]
[null,null,null,null,"スポーツ・アウトドア"]
[null,null,null,null,"雑貨・日用品"]
[null,null,null,null,"美容"]
[null,null,null,null,"ファッション"]
[null,null,null,null,"家具・工芸品・装飾品"]